Cogmind - Beta 13 @@@ ROGUE MODE // 2024.04.01 @ 15:25:56 Player: AliceTheGorgon Result: Destroyed by as-30994 with Assembled Heavy Rifle Performance ------------- Evolutions (0) 0 Regions Visited (2) 400 Robots Destroyed (13) 65 Value Destroyed (300) 300 Prototype IDs (0) 0 Alien Tech Used (0) 0 Bonus (0) 0 TOTAL SCORE: 765 Bonus ------- None Cogmind --------- Core Integrity 0/250 Matter 212/300 Energy 94/100 System Corruption 0% Temperature Cool (0) Movement Core (50) Location -10/Mines Parts ------- > --- POWER (1) -------- (None) > --- PROPULSION (2) --- (None) > --- UTILITY (2) ------ Improved Heat Sink Signal Interpreter > --- WEAPON (2) ------- (None) > --- INVENTORY (5) ---- Small Storage Unit Peak State ------------ > --- POWER ------------ Light Ion Engine > --- PROPULSION ------- Aluminum Leg Aluminum Leg > --- UTILITY ---------- Structural Scanner Signal Interpreter > --- WEAPON ----------- EM Pulse Gun Assault Rifle > --- INVENTORY -------- Small Laser Assault Rifle Grenade Launcher [Rating: 7] Favorites ----------- Power Light Ion Engine Engine Light Ion Engine Propulsion Aluminum Leg Leg Aluminum Leg Wheel Wheel Utility Signal Interpreter Device Structural Scanner Processor Signal Interpreter Weapon EM Pulse Gun Energy Gun EM Pulse Gun Ballistic Gun Assault Rifle Launcher Grenade Launcher Special Weapon Mining Laser Build | -11 -10 -10 ------- Run | Yrd Mat Min Slots Evolved . | . . . Power . | . . . Propulsion . | . . . Utility . | . . . Weapon . | . . . Parts Attached 25 | 7 10 8 Power 1 | 1 . . Engine 1 | 1 . . Core . | . . . Reactor . | . . . Propulsion 10 | 4 4 2 Treads . | . . . Leg 6 | 2 4 . Wheel 4 | 2 . 2 Hover . | . . . Flight . | . . . Utility 3 | . 2 1 Device 2 | . 1 1 Storage . | . . . Processor 1 | . 1 . Hackware . | . . . Protection . | . . . Artifact . | . . . Weapon 11 | 2 4 5 Energy Gun 4 | 1 3 . Energy Cannon . | . . . Ballistic Gun 4 | 1 1 2 Ballistic Cannon . | . . . Launcher 2 | . . 2 Special Weapon 1 | . . 1 Impact Weapon . | . . . Slashing Weapon . | . . . Piercing Weapon . | . . . Special Melee Weapon . | . . . Unidentified Prototypes . | . . . Parts Lost 9 | . . 9 Power 1 | . . 1 Propulsion 2 | . . 2 Utility 1 | . . 1 Weapon 5 | . . 5 Highest Loss Streak 8 | . . 8 To Critical Strikes . | . . . Average Slot Usage (%) 93 | . 94 91 Engine 13 | . 14 12 Leg 21 | . 25 9 Wheel 5 | . 2 15 Device 11 | . 11 13 Processor 13 | . 12 14 Energy Gun 15 | . 16 11 Ballistic Gun 8 | . 9 4 Launcher 2 | . . 8 Naked Turns . | . . . Heaviest Build 9 | 7 8 9 Greatest Support 20 | 20 20 20 Greatest Overweight (x) . | . . . Average Overweight (x) . | . . . Largest Inventory Capacity 5 | 5 5 5 Average Capacity 5 | 5 5 5 Most Carried 5 | 4 5 5 Average Carried 3 | 2 4 3 Final Capacity 5 | 5 5 5 Final Carried 5 | 4 5 1 Class Distribution -------------------- 100% | Mutant Dominant Class ---------------- Mutant | -10/Materials Mutant | -10/Mines Resources | -11 -10 -10 ----------- Run | Yrd Mat Min Matter Collected 436 | 261 145 30 Remotely . | . . . Salvage Created 343 | 42 220 81 Parts 22 | 1 13 8 Haulers Intercepted . | . . . Recyclers Shooed . | . . . Parts Field Recycled . | . . . Retrieved Matter . | . . . Parts Self-Destructed . | . . . Prevented . | . . . Kills | -11 -10 -10 ------- Run | Yrd Mat Min Combat Hostiles Destroyed 9 | 1 3 5 Guns 4 | 1 3 . AOE 5 | . . 5 Classes Destroyed 6 | 1 2 3 Worker 1 | . . 1 Tunneler 1 | . . 1 Recycler 1 | . 1 . Watcher 1 | . 1 . Swarmer 3 | . . 3 Grunt 6 | 1 3 2 Best Kill Streak 4 | 1 3 4 Combat Bots Only 3 | 1 2 3 Max Kills in Single Turn 2 | 1 1 2 Gunslinging . | . . . Exploded 2 | . . 2 Melee . | . . . Uniques/NPCs Destroyed . | . . . Combat | -11 -10 -10 -------- Run | Yrd Mat Min Hostile Shots Fired 79 | 1 14 64 Missed 20 | . 2 18 Damage Taken 857 | 11 153 693 Core 255 | . 21 234 Absorbed by Shields . | . . . Regen/Repaired (Parts) 54 | . 54 . Core Remaining (%) 100 | 100 . . Volleys Fired 29 | 1 17 11 Largest 2 | 2 2 2 Hottest 120 | 60 80 120 Shots Fired 54 | 2 32 20 Gun 47 | 2 32 13 Cannon . | . . . Launcher 6 | . . 6 Special 1 | . . 1 Kinetic 18 | 1 11 6 Thermal 10 | . 4 6 Explosive 6 | . . 6 Electromagnetic 20 | 1 17 2 Robot Hit Streak 6 | 2 4 6 Robot Miss Streak 4 | . 4 1 Penetration Max . | . . . Secondary Targets . | . . . Shots Hit Robots 30 | 2 15 13 Core Hits 21 | 2 9 10 Critical Kills . | . . . Critical Parts Destroyed . | . . . Critical Strikes 1 | . 1 . Corrupt 1 | . 1 . Melee Attacks . | . . . Impact . | . . . Slashing . | . . . Piercing . | . . . Sneak Attacks . | . . . Combat Hostiles . | . . . Follow-up Attacks . | . . . Damage Inflicted 817 | 25 220 572 Guns 317 | 25 216 76 Cannons . | . . . Explosions 472 | . . 472 Melee . | . . . Ramming 4 | . 4 . Kinetic 119 | 12 79 28 Thermal 55 | . 10 45 Explosive 472 | . . 472 Electromagnetic 167 | 13 127 27 Impact . | . . . Slashing . | . . . Piercing . | . . . Highest Corruption . | . . . Average Corruption . | . . . Corruption Purged . | . . . Corruption Blocked . | . . . Overload Shots . | . . . Overflow Damage 21 | . . 21 Projectiles . | . . . Explosions 21 | . . 21 Melee . | . . . Knockbacks . | . . . Impact . | . . . Kinetic . | . . . Secondary . | . . . Self-Inflicted Damage . | . . . Shots . | . . . Rammed . | . . . Targets Rammed 1 | . 1 . Kicked 1 | . 1 . Crushed . | . . . Highest Temperature 97 | 6 60 97 Average Temperature 37 | 6 24 50 Received Heat Transfer 264 | 6 84 174 Siege Activations . | . . . Robots Corrupted . | . . . Combat Hostiles . | . . . Parts Fried . | . . . Impact Corruptions . | . . . Robots Melted . | . . . Combat Hostiles . | . . . Parts Melted . | . . . Heat Transferred 125 | . 25 100 Parts Sabotaged . | . . . Parts Stolen . | . . . Parts Stripped . | . . . Power Chain Reactions . | . . . Alert | -11 -10 -10 ------- Run | Yrd Mat Min Peak Influence 187 | 20 140 187 Initial 42 | . 13 42 Average 66 | 1 65 112 Maximum Alert Level . | . . . Low Security (%) 100 | 100 100 100 Level 1 . | . . . Level 2 . | . . . Level 3 . | . . . Level 4 . | . . . Level 5 . | . . . High Security . | . . . Max Security . | . . . Squads Dispatched 1 | . 1 . Investigation . | . . . Extermination . | . . . Reinforcement 1 | . 1 . Assault . | . . . Garrison . | . . . Intercept . | . . . Searches Triggered . | . . . Construction Impeded . | . . . Haulers Reinforced . | . . . Active Scanning Responses . | . . . Cargo Convoy Interrupts . | . . . Stealth | -11 -10 -10 --------- Run | Yrd Mat Min Distress Signals 2 | . 2 . Communications Jammed . | . . . Distress Signals . | . . . Times Spotted 32 | 1 14 17 Peak Tracking Total 12 | 1 4 12 Tactical Retreats 3 | . 3 . Traps | -11 -10 -10 ------- Run | Yrd Mat Min Traps Triggered 1 | . 1 . Indirectly . | . . . Trap Hack Attempts . | . . . Triggered . | . . . Disarmed . | . . . Reprogrammed . | . . . Reused . | . . . Traps Extracted . | . . . Installed . | . . . Triggered . | . . . Machines | -11 -10 -10 ---------- Run | Yrd Mat Min Machines Disabled 1 | . 1 . Max in Single Turn 1 | . 1 . Machines Repaired . | . . . Machines Dismantled . | . . . Machines Sabotaged . | . . . Overloaded Fab Kills . | . . . Hacking | -11 -10 -10 --------- Run | Yrd Mat Min Machines Accessed 2 | . 2 . Terminals 1 | . 1 . Fabricators . | . . . Repair Stations 1 | . 1 . Recycling Units . | . . . Scanalyzers . | . . . Garrison Access . | . . . Total Hacks 5 | . 5 . Successful 4 | . 4 . Failed 1 | . 1 . Catastrophic . | . . . Database Lockouts . | . . . Manual . | . . . Terminals 1 | . 1 . Fabricators . | . . . Repair Stations 4 | . 4 . Recycling Units . | . . . Scanalyzers . | . . . Garrison Access . | . . . Terminal Hacks . | . . . Fabricator Hacks . | . . . Repair Station Hacks 4 | . 4 . Scan Component 2 | . 2 . Repair 2 | . 2 . Recycling Unit Hacks . | . . . Scanalyzer . | . . . Garrison Access Hacks . | . . . Unauthorized Hacks . | . . . Terminals . | . . . Fabricators . | . . . Repair Stations . | . . . Recycling Units . | . . . Scanalyzers . | . . . Garrison Access . | . . . Data Cores Recovered . | . . . Used . | . . . Hacking Detections 1 | . 1 . Full Trace Events . | . . . Feedback Events . | . . . Feedback Blocked . | . . . Robot Schematics Acquired . | . . . Robots Built . | . . . Authchips . | . . . Time . | . . . Total Robot Build Rating . | . . . Part Schematics Acquired . | . . . Parts Built . | . . . Authchips . | . . . Time . | . . . Total Part Build Rating . | . . . Parts Repaired 2 | . 2 . Time 62 | . 62 . Parts Recycled . | . . . Recycled Matter . | . . . Retrieved Matter . | . . . Retrieved Components . | . . . Parts Scanalyzed . | . . . Part Schematics Acquired . | . . . Parts Damaged . | . . . Bothacking | -11 -10 -10 ------------ Run | Yrd Mat Min Used RIF Installer . | . . . Robots Hacked . | . . . Non-combat . | . . . Combat . | . . . Robot Hacks Applied . | . . . Relay Couplers Released . | . . . Fabnet Peak Effective % . | . . . Robots Rewired . | . . . Allies Hacked . | . . . Hacks Repelled . | . . . Allies | -11 -10 -10 -------- Run | Yrd Mat Min Total Allies . | . . . Largest Group . | . . . Highest-Rated Group . | . . . Highest-Rated Ally . | . . . Total Orders . | . . . Ally Attacks . | . . . Total Damage . | . . . Kills . | . . . Allies Corrupted . | . . . Allies Melted . | . . . Intel | -11 -10 -10 ------- Run | Yrd Mat Min Robot Analysis Total . | . . . Derelict Logs Recovered 1 | . . 1 Drone Launches . | . . . Drone Recoveries . | . . . Exploration | -11 -10 -10 ------------- Run | Yrd Mat Min Turns Passed 895 | 126 585 184 Spaces Moved 603 | 67 384 152 Core 46 | 19 . 27 Treads . | . . . Legs 366 | . 333 33 Wheels 191 | 48 51 92 Hover . | . . . Flight . | . . . Fastest Speed 50 | 50 80 50 Average Speed 101 | 71 114 83 Slowest Speed 120 | 80 120 120 Overloaded Moves . | . . . Propulsion Burnouts . | . . . Robots Hopped . | . . . Cave-ins Triggered . | . . . Exploration Rate (%) 33 | 6 53 41 Regions Visited 2 Branch Regions 1 Pre-discovered Areas 1 | . . 1 Known Exits Taken 1 | . 1 . Unknown Exits Taken 1 | 1 . . Scrap Searched . | . . . Spaces Dug . | . . . Terrain Destroyed 27 | . . 27 Melee . | . . . Projectile . | . . . AOE 27 | . . 27 Terrain Rammed . | . . . Walls Destroyed . | . . . Machines Disabled . | . . . Actions | -11 -10 -10 --------- Run | Yrd Mat Min Total 825 | 141 497 187 Wait 138 | 58 70 10 Move 601 | 66 383 152 Hop . | . . . Pick Up 24 | 9 12 3 Fast Attach . | . . . Attach 17 | 5 7 5 Detach . | . . . Swap 8 | 2 3 3 Drop 7 | . 4 3 Fire 29 | 1 17 11 Melee . | . . . Ram . | . . . Kick 1 | . 1 . Crush . | . . . Escape Stasis . | . . . Rewire . | . . . Trap . | . . . Miscellaneous . | . . . Route ------- -11/Scrapyard -10/Materials (discovered 2 exits: [*Mat] / *Min) -10/Mines (discovered 1 exit: [Sub]) History --------- Turn | Location | Event 2 | -11/Scrapyard | Met Revision 17 85 | -11/Scrapyard | Discovered new exit (range 8) 127 | -11/Scrapyard | Entered Materials 228 | -10/Materials | Discovered new exit (range 7) 316 | -10/Materials | Build established: Mutant 394 | -10/Materials | Discovered new exit (range 9) 517 | -10/Materials | Repaired Corrupted Sml. Storage Unit 544 | -10/Materials | Repaired EM Pulse Gun 711 | -10/Materials | Identified exit to Mines 712 | -10/Materials | Entered Mines 712 | -10/Mines | Discovered new exit (range 5) 758 | -10/Mines | Met a Derelict bent on vengeance 818 | -10/Mines | Learned location of Zion (-7) 850 | -10/Mines | Assembled infested the area 855 | -10/Mines | Assisted by a Guerilla fighting off Assembled 881 | -10/Mines | Core integrity fell below 50% 891 | -10/Mines | Core integrity fell below 20% 896 | -10/Mines | Destroyed by as-30994 with Assembled Heavy Rifle Last Messages --------------- try to find another way!" HV Slug penetrates Wall. as-77417 sneak attacks. K-01 Serf system corrupted by crushing effect. HV Slug penetrates as-57544. as-57544 suffers critical hit (Destroy). as-57544 knocked back. 3B-I17(h) system corrupted by crushing effect. 3B-I17(h) system terminally corrupted. R-06 Scavenger collects Sml. Laser. R-06 Scavenger destroyed. K-01 Serf destroyed. Wheel destroyed. Assault Rifle destroyed. Mining Laser destroyed. Lgt. Ion Engine destroyed. Wheel destroyed. Structural Scanner destroyed. Lgt. Assault Rifle destroyed. [Achievement: First Step to Greatness] Map ----- +----------------------------------------------------+ | ?????????????????????????????????????????????????? | | ?????????????????????????????????????????????????? | | ??????????????????###????????????????????????????? | | ?????????????????#####???????????????????????????? | | ?????????????????## ##???????????????????????????? | | ?????????????????# ##??????????????????????????? | | ?????????????????## ####????????????????????????? | | ?????????????????## ###????????????????????????? | | ?????????????????## ###???????????????????????? | | ??????????????????# ####?????????????????? #### | | ?????????????????## ####????????????????? #### | | ????????????????## ###??????????######? # | | ????????????????# ##??????????###### | | ????????????????# ##?????????? ### | | ????????????????## ##??????????## ## | | ?????????????????### ##????????#### | | ??????????????????### ##???????##### | | ?????????????????#### ###???????### # | | ?????????????????### ###??######## ##?# | | ?????????????????##aa ###???######## ###?# | | ??????????######### a ###???## #### | | ??????????######### ###???## ## | | ?????????# # ####??## ##### | | ???######; %= ####### ##### | | # ###### !%[ ###### ##### | | ## = @ #### | | ## ]%% ### | | ## %! ### ########## | | # = #### ############ ### | | # ???##### ### #####?????## ### | | ## ??????########## ##???????## ###? | | ## ????????######### ###???????## ##?# | | ## ??????????????########???????### ##?### | | ??????????????????######????????#### ###?### | | ?????????????????????????????????###### ####???? | | ??????????????????????????????????##### ###????? | | ?????????????????????????????????????## ##????## | | ?????????????????????????????????????## ##????## | | ?????????????????????????????????????## ##????## | | ?????????????????????????????????????## ##????## | | ????????????????????????????????????### ###???## | | ????????????????????????????????????### ####?### | | ????????????????????????????????????## ####### | | ????????????????????????????????????## ##### | | ????????????????????????????????????### ### | | ????????????????????????????????????##### | | ?????????????????????????????????????##### | | ???????????????????????????????????????### | | ????????????????????????????????????????### | | ????????????????????????????????????????#### # # | +----------------------------------------------------+ Best States ------------- Heat Dissipation 39 Energy Generation 10 Energy Capacity 125 Matter Stores 300 Matter Capacity 300 Sight Range 16 Terrain Scan Density 10 Evasion (%) 55 Item Schematics ----------------- None Robot Schematics ------------------ None Fabricated ------------ Nothing Alien Tech Used ----------------- None Achievements -------------- First Step to Greatness Part-time Mechanic Uninvited Guest Challenges ------------ None Game ------ Seed StructuralAntimissileArchive Manual? 0 Play Time 00:38:37 Cumulative 0.6 hours Start 2024.04.01 @ 05:11:24 End 2024.04.01 @ 15:25:56 Sessions 3 Manual Loads 0 Difficulty Rogue Special Mode None Game No. 1 Rogue 1 Adventurer 0 Explorer 0 Win Type - Total 0 Types 0/0/0/0/0/0/0/0/0 Lore% 0 Gallery% 1 Achievement% 1 Wizard Run 0 Options --------- Layout 1 ASCII 0 Keyboard 0 Movement Mouse Keybinds 0 Fullscreen 1 Font 28/SmallcapsGlow Map View 50x43 Zoom Use 1% Tactical HUD 0 Map Filters NONE Filters NONE Steam 0 RUN: 30daa6ca-c63e-4d91-abe6-a3218bcd0720